[Event "Titled Tuesday Blitz August 17 2021"]
[White "Shtyka, Sergey"]
[Black "Ivanov, Oleg"]
[WhiteFideId "4138465"]
[BlackFideId "4103114"]
[WhiteElo "2064"]
[BlackElo "2703"]
[Result "1-0"]
[Round "02"]
[TimeControl "180+1"]
[Date "2021.08.17"]
[WhiteClock "0:00:47"]
[BlackClock "0:00:04"]

1. e4 {[%clk 0:03:00]}  c5 {[%clk 0:02:52]} 2. Nf3 {[%clk 0:02:58]}  d6 {[%clk 0:02:51]} 3. d4 {[%clk 0:02:58]}  cxd4 {[%clk 0:02:51]} 4. Nxd4 {[%clk 0:02:58]}  Nf6 {[%clk 0:02:51]} 5. Nc3 {[%clk 0:02:59]}  Nc6 {[%clk 0:02:52]} 6. Bc4 {[%clk 0:02:58]}  Qb6 {[%clk 0:02:46]} 7. Nb3 {[%clk 0:02:57]}  e6 {[%clk 0:02:45]} 8. Be3 {[%clk 0:02:57]}  Qc7 {[%clk 0:02:45]} 9. O-O {[%clk 0:02:57]}  a6 {[%clk 0:02:43]} 10. Bd3 {[%clk 0:02:47]}  b5 {[%clk 0:02:31]} 11. a3 {[%clk 0:02:46]}  Be7 {[%clk 0:02:15]} 12. f4 {[%clk 0:02:46]}  h5 {[%clk 0:02:14]} 13. h3 {[%clk 0:02:38]}  h4 {[%clk 0:02:06]} 14. Nd4 {[%clk 0:02:35]}  Nxd4 {[%clk 0:01:53]} 15. Bxd4 {[%clk 0:02:35]}  e5 {[%clk 0:01:51]} 16. Be3 {[%clk 0:02:33]}  exf4 {[%clk 0:01:43]} 17. Bxf4 {[%clk 0:02:23]}  Be6 {[%clk 0:01:27]} 18. Qe2 {[%clk 0:01:57]}  Nh5 {[%clk 0:01:10]} 19. Nd5 {[%clk 0:01:35]}  Bxd5 {[%clk 0:00:56]} 20. exd5 {[%clk 0:01:35]}  Nxf4 {[%clk 0:00:25]} 21. Rxf4 {[%clk 0:01:33]}  O-O {[%clk 0:00:25]} 22. Qh5 {[%clk 0:01:24]}  f5 {[%clk 0:00:20]} 23. Rxf5 {[%clk 0:01:09]}  Bf6 {[%clk 0:00:10]} 24. Rf3 {[%clk 0:00:52]}  Qc5+ {[%clk 0:00:08]} 25. Kh1 {[%clk 0:00:51]}  Qd4 {[%clk 0:00:04]} 26. Bh7+ {[%clk 0:00:47]} 1-0


[Site "https://www.chess.com"]

[Event "Titled Tuesday Blitz August 17 2021"]
[White "Silva, Kevin Ranidu"]
[Black "Taboas Rodriguez, Daniel"]
[WhiteFideId "9935258"]
[BlackFideId "2208466"]
[WhiteElo "1626"]
[BlackElo "2429"]
[Result "1-0"]
[Round "02"]
[TimeControl "180+1"]
[Date "2021.08.18"]
[WhiteClock "0:00:36"]
[BlackClock "0:00:16"]

1. d4 {[%clk 0:03:00]}  Nf6 {[%clk 0:02:59]} 2. Nf3 {[%clk 0:03:01]}  g6 {[%clk 0:02:57]} 3. c4 {[%clk 0:02:58]}  Bg7 {[%clk 0:02:58]} 4. Nc3 {[%clk 0:02:59]}  O-O {[%clk 0:02:59]} 5. e4 {[%clk 0:02:59]}  d6 {[%clk 0:02:59]} 6. Be2 {[%clk 0:03:00]}  e5 {[%clk 0:02:56]} 7. O-O {[%clk 0:03:00]}  Nc6 {[%clk 0:02:56]} 8. d5 {[%clk 0:03:00]}  Ne7 {[%clk 0:02:56]} 9. b4 {[%clk 0:03:00]}  Nh5 {[%clk 0:02:56]} 10. g3 {[%clk 0:02:39]}  f5 {[%clk 0:02:55]} 11. Ng5 {[%clk 0:02:25]}  Nf6 {[%clk 0:02:55]} 12. f3 {[%clk 0:02:23]}  c6 {[%clk 0:02:51]} 13. c5 {[%clk 0:02:19]}  cxd5 {[%clk 0:02:49]} 14. exd5 {[%clk 0:02:09]}  h6 {[%clk 0:02:48]} 15. Ne6 {[%clk 0:01:54]}  Bxe6 {[%clk 0:02:48]} 16. dxe6 {[%clk 0:01:52]}  d5 {[%clk 0:02:28]} 17. Rb1 {[%clk 0:01:48]}  Qc8 {[%clk 0:02:27]} 18. Nb5 {[%clk 0:01:48]}  Qxe6 {[%clk 0:02:17]} 19. Nc7 {[%clk 0:01:47]}  Qd7 {[%clk 0:02:18]} 20. Nxa8 {[%clk 0:01:47]}  Rxa8 {[%clk 0:02:19]} 21. Bb2 {[%clk 0:01:47]}  d4 {[%clk 0:02:19]} 22. Bc4+ {[%clk 0:01:47]}  Kh7 {[%clk 0:02:19]} 23. f4 {[%clk 0:01:48]}  Ne4 {[%clk 0:02:15]} 24. Qd3 {[%clk 0:01:39]}  Rd8 {[%clk 0:02:11]} 25. fxe5 {[%clk 0:01:37]}  Bxe5 {[%clk 0:02:12]} 26. Rbe1 {[%clk 0:01:38]}  Bg7 {[%clk 0:02:07]} 27. Rxe4 {[%clk 0:01:24]}  fxe4 {[%clk 0:02:07]} 28. Qxe4 {[%clk 0:01:25]}  Rf8 {[%clk 0:00:23]} 29. Rxf8 {[%clk 0:01:12]}  Bxf8 {[%clk 0:00:24]} 30. Bxd4 {[%clk 0:01:13]}  Bg7 {[%clk 0:00:23]} 31. Bf2 {[%clk 0:00:47]}  Nf5 {[%clk 0:00:20]} 32. Be6 {[%clk 0:00:42]}  Qd1+ {[%clk 0:00:21]} 33. Kg2 {[%clk 0:00:42]}  Nd4 {[%clk 0:00:20]} 34. Bf7 {[%clk 0:00:38]}  Nf5 {[%clk 0:00:19]} 35. g4 {[%clk 0:00:37]}  Nh4+ {[%clk 0:00:16]} 36. Bxh4 {[%clk 0:00:36]} 1-0


[Site "https://www.chess.com"]

[Event "Titled Tuesday Blitz August 17 2021"]
[White "Solovchuk, Oleksiy"]
[Black "Esipenko, Andrey"]
[WhiteFideId "14115220"]
[BlackFideId "24175439"]
[WhiteElo "2376"]
[BlackElo "2595"]
[Result "0-1"]
[Round "02"]
[TimeControl "180+1"]
[Date "2021.08.17"]
[WhiteClock "0:00:17"]
[BlackClock "0:00:45"]

1. d4 {[%clk 0:03:00]}  Nf6 {[%clk 0:02:59]} 2. Nf3 {[%clk 0:03:00]}  b6 {[%clk 0:02:58]} 3. g3 {[%clk 0:02:58]}  Bb7 {[%clk 0:02:57]} 4. Bg2 {[%clk 0:02:59]}  c5 {[%clk 0:02:55]} 5. c3 {[%clk 0:02:56]}  g6 {[%clk 0:02:55]} 6. O-O {[%clk 0:02:56]}  Bg7 {[%clk 0:02:55]} 7. Bf4 {[%clk 0:02:55]}  d6 {[%clk 0:02:54]} 8. Qd2 {[%clk 0:02:52]}  h6 {[%clk 0:02:53]} 9. Na3 {[%clk 0:02:49]}  g5 {[%clk 0:02:45]} 10. Be3 {[%clk 0:02:48]}  O-O {[%clk 0:02:44]} 11. h4 {[%clk 0:02:46]}  g4 {[%clk 0:02:44]} 12. Nh2 {[%clk 0:02:46]}  Bxg2 {[%clk 0:02:45]} 13. Kxg2 {[%clk 0:02:46]}  h5 {[%clk 0:02:43]} 14. Bh6 {[%clk 0:02:42]}  Nh7 {[%clk 0:02:21]} 15. f3 {[%clk 0:02:34]}  f5 {[%clk 0:02:17]} 16. Rad1 {[%clk 0:02:25]}  Nd7 {[%clk 0:02:15]} 17. Nc4 {[%clk 0:02:18]}  Rf6 {[%clk 0:01:53]} 18. Bxg7 {[%clk 0:02:16]}  Kxg7 {[%clk 0:01:54]} 19. Ne3 {[%clk 0:02:14]}  Qf8 {[%clk 0:01:49]} 20. Nd5 {[%clk 0:02:13]}  Rg6 {[%clk 0:01:42]} 21. Nf4 {[%clk 0:02:09]}  Rh6 {[%clk 0:01:37]} 22. fxg4 {[%clk 0:02:08]}  hxg4 {[%clk 0:01:38]} 23. Nxg4 {[%clk 0:02:07]}  fxg4 {[%clk 0:01:37]} 24. Nh5+ {[%clk 0:02:02]}  Rxh5 {[%clk 0:01:36]} 25. Rxf8 {[%clk 0:02:02]}  Rxf8 {[%clk 0:01:36]} 26. e4 {[%clk 0:02:00]}  Ndf6 {[%clk 0:01:31]} 27. Qe2 {[%clk 0:01:56]}  e5 {[%clk 0:01:09]} 28. dxc5 {[%clk 0:01:53]}  dxc5 {[%clk 0:01:10]} 29. Qa6 {[%clk 0:01:19]}  Rf7 {[%clk 0:01:11]} 30. Qc8 {[%clk 0:01:16]}  Nf8 {[%clk 0:01:09]} 31. Rd8 {[%clk 0:01:12]}  Rh6 {[%clk 0:01:08]} 32. Qf5 {[%clk 0:01:09]}  N8d7 {[%clk 0:01:01]} 33. Ra8 {[%clk 0:01:05]}  a5 {[%clk 0:00:56]} 34. Ra7 {[%clk 0:00:58]}  Nd5 {[%clk 0:00:49]} 35. Qxg4+ {[%clk 0:00:51]}  Rg6 {[%clk 0:00:49]} 36. Qxd7 {[%clk 0:00:32]}  Ne3+ {[%clk 0:00:48]} 37. Kh3 {[%clk 0:00:32]}  Rxd7 {[%clk 0:00:47]} 38. Rxd7+ {[%clk 0:00:32]}  Kh6 {[%clk 0:00:48]} 39. Re7 {[%clk 0:00:32]}  Ng4 {[%clk 0:00:47]} 40. Kg2 {[%clk 0:00:28]}  Rf6 {[%clk 0:00:48]} 41. Kh3 {[%clk 0:00:24]}  Nf2+ {[%clk 0:00:48]} 42. Kg2 {[%clk 0:00:23]}  Nxe4 {[%clk 0:00:48]} 43. Rxe5 {[%clk 0:00:23]}  Rf2+ {[%clk 0:00:49]} 44. Kg1 {[%clk 0:00:23]}  Re2 {[%clk 0:00:49]} 45. g4 {[%clk 0:00:23]}  Ng3 {[%clk 0:00:43]} 46. Rxe2 {[%clk 0:00:21]}  Nxe2+ {[%clk 0:00:44]} 47. Kf2 {[%clk 0:00:22]}  Nc1 {[%clk 0:00:44]} 48. Ke3 {[%clk 0:00:18]}  Nxa2 {[%clk 0:00:44]} 49. Ke4 {[%clk 0:00:17]}  Nc1 {[%clk 0:00:45]} 50. Kd5 {[%clk 0:00:17]}  Nd3 {[%clk 0:00:45]} 51. Kc6 {[%clk 0:00:17]}  Nxb2 {[%clk 0:00:45]} 52. Kb5 {[%clk 0:00:17]}  a4 {[%clk 0:00:45]} 0-1


[Site "https://www.chess.com"]

[Event "Titled Tuesday Blitz August 17 2021"]
[White "Stoyanov, Tsvetan"]
[Black "Adury, Anant"]
[WhiteFideId "2917173"]
[BlackFideId "30964687"]
[WhiteElo "2191"]
[BlackElo "2300"]
[Result "1/2-1/2"]
[Round "02"]
[TimeControl "180+1"]
[Date "2021.08.18"]
[WhiteClock "0:00:20"]
[BlackClock "0:00:58"]

1. e4 {[%clk 0:03:00]}  c5 {[%clk 0:02:59]} 2. Nf3 {[%clk 0:03:01]}  g6 {[%clk 0:02:59]} 3. d4 {[%clk 0:03:01]}  cxd4 {[%clk 0:03:00]} 4. Nxd4 {[%clk 0:03:02]}  Nc6 {[%clk 0:03:00]} 5. c4 {[%clk 0:03:02]}  Nf6 {[%clk 0:03:00]} 6. Nc3 {[%clk 0:03:02]}  d6 {[%clk 0:03:01]} 7. Be3 {[%clk 0:03:02]}  Ng4 {[%clk 0:03:00]} 8. Nxc6 {[%clk 0:02:49]}  Nxe3 {[%clk 0:03:00]} 9. Nxd8 {[%clk 0:02:49]}  Nxd1 {[%clk 0:03:00]} 10. Rxd1 {[%clk 0:02:35]}  Kxd8 {[%clk 0:03:00]} 11. c5 {[%clk 0:02:27]}  Be6 {[%clk 0:02:53]} 12. cxd6 {[%clk 0:02:06]}  exd6 {[%clk 0:02:54]} 13. e5 {[%clk 0:02:06]}  Bg7 {[%clk 0:02:13]} 14. f4 {[%clk 0:02:04]}  Ke7 {[%clk 0:02:06]} 15. exd6+ {[%clk 0:02:01]}  Kd7 {[%clk 0:02:06]} 16. Bb5+ {[%clk 0:02:00]}  Kd8 {[%clk 0:02:07]} 17. O-O {[%clk 0:01:56]}  a6 {[%clk 0:02:07]} 18. Bd3 {[%clk 0:01:36]}  Rc8 {[%clk 0:01:56]} 19. Be4 {[%clk 0:01:26]}  Bxc3 {[%clk 0:01:51]} 20. bxc3 {[%clk 0:01:27]}  Rxc3 {[%clk 0:01:41]} 21. Bxb7 {[%clk 0:01:27]}  Bxa2 {[%clk 0:01:40]} 22. Bxa6 {[%clk 0:01:00]}  Bc4 {[%clk 0:01:40]} 23. Bxc4 {[%clk 0:00:48]}  Rxc4 {[%clk 0:01:40]} 24. f5 {[%clk 0:00:45]}  g5 {[%clk 0:01:23]} 25. Rfe1 {[%clk 0:00:44]}  Re8 {[%clk 0:01:22]} 26. Rxe8+ {[%clk 0:00:40]}  Kxe8 {[%clk 0:01:23]} 27. Re1+ {[%clk 0:00:37]}  Kd7 {[%clk 0:01:02]} 28. Re7+ {[%clk 0:00:37]}  Kxd6 {[%clk 0:01:02]} 29. Rxf7 {[%clk 0:00:37]}  Rf4 {[%clk 0:01:01]} 30. g3 {[%clk 0:00:37]}  Rf3 {[%clk 0:01:00]} 31. Kg2 {[%clk 0:00:36]}  g4 {[%clk 0:01:01]} 32. h3 {[%clk 0:00:36]}  h5 {[%clk 0:00:59]} 33. hxg4 {[%clk 0:00:20]}  hxg4 {[%clk 0:00:59]} 34. Rg7 {[%clk 0:00:20]}  Rxf5 {[%clk 0:00:59]} 35. Rxg4 {[%clk 0:00:21]}  Ke6 {[%clk 0:00:59]} 36. Ra4 {[%clk 0:00:21]}  Kf6 {[%clk 0:00:58]} 37. g4 {[%clk 0:00:21]}  Rb5 {[%clk 0:00:57]} 38. Kg3 {[%clk 0:00:21]}  Kg5 {[%clk 0:00:57]} 39. Ra3 {[%clk 0:00:20]}  Rc5 {[%clk 0:00:57]} 40. Rf3 {[%clk 0:00:20]}  Rb5 {[%clk 0:00:58]} 1/2-1/2


[Site "https://www.chess.com"]

[Event "Titled Tuesday Blitz August 17 2021"]
[White "Svane, Rasmus"]
[Black "Piesik, Piotr"]
[WhiteFideId "4657101"]
[BlackFideId "1136194"]
[WhiteElo "2669"]
[BlackElo "2395"]
[Result "1-0"]
[Round "02"]
[TimeControl "180+1"]
[Date "2021.08.17"]
[WhiteClock "0:01:00"]
[BlackClock "0:01:13"]

1. Nf3 {[%clk 0:03:00]}  g6 {[%clk 0:02:58]} 2. e4 {[%clk 0:03:00]}  Bg7 {[%clk 0:02:58]} 3. d4 {[%clk 0:03:00]}  c6 {[%clk 0:02:59]} 4. c3 {[%clk 0:03:00]}  d6 {[%clk 0:02:59]} 5. Bd3 {[%clk 0:03:00]}  Nf6 {[%clk 0:03:00]} 6. O-O {[%clk 0:03:01]}  O-O {[%clk 0:03:00]} 7. h3 {[%clk 0:03:01]}  Nbd7 {[%clk 0:03:00]} 8. Re1 {[%clk 0:03:02]}  e5 {[%clk 0:03:01]} 9. Be3 {[%clk 0:03:02]}  Re8 {[%clk 0:03:00]} 10. Nbd2 {[%clk 0:03:01]}  d5 {[%clk 0:02:58]} 11. Nxe5 {[%clk 0:02:46]}  Nxe5 {[%clk 0:02:56]} 12. dxe5 {[%clk 0:02:47]}  Nxe4 {[%clk 0:02:53]} 13. f4 {[%clk 0:02:46]}  Bf5 {[%clk 0:02:43]} 14. Nf3 {[%clk 0:02:30]}  Ng3 {[%clk 0:02:42]} 15. Bxf5 {[%clk 0:02:25]}  Nxf5 {[%clk 0:02:43]} 16. Bf2 {[%clk 0:02:25]}  f6 {[%clk 0:02:42]} 17. g4 {[%clk 0:02:24]}  Ne7 {[%clk 0:02:42]} 18. e6 {[%clk 0:02:22]}  f5 {[%clk 0:02:42]} 19. Ng5 {[%clk 0:02:11]}  Qd6 {[%clk 0:02:38]} 20. Nf7 {[%clk 0:02:10]}  Qxf4 {[%clk 0:02:36]} 21. Kg2 {[%clk 0:02:01]}  fxg4 {[%clk 0:02:34]} 22. hxg4 {[%clk 0:02:00]}  Nc8 {[%clk 0:02:27]} 23. Bg3 {[%clk 0:01:53]}  Qf6 {[%clk 0:02:22]} 24. Qe2 {[%clk 0:01:40]}  Nb6 {[%clk 0:01:59]} 25. g5 {[%clk 0:01:35]}  Qxe6 {[%clk 0:01:47]} 26. Qxe6 {[%clk 0:01:31]}  Rxe6 {[%clk 0:01:48]} 27. Rxe6 {[%clk 0:01:28]}  Kxf7 {[%clk 0:01:49]} 28. Rae1 {[%clk 0:01:27]}  Bf8 {[%clk 0:01:48]} 29. Bd6 {[%clk 0:01:09]}  Rd8 {[%clk 0:01:40]} 30. Rf6+ {[%clk 0:01:08]}  Kg8 {[%clk 0:01:39]} 31. Bxf8 {[%clk 0:01:09]}  Rxf8 {[%clk 0:01:39]} 32. Re7 {[%clk 0:01:09]}  Nc4 {[%clk 0:01:30]} 33. Rxb7 {[%clk 0:01:07]}  a5 {[%clk 0:01:23]} 34. a4 {[%clk 0:01:05]}  Re8 {[%clk 0:01:17]} 35. Rxc6 {[%clk 0:01:02]}  Ne5 {[%clk 0:01:13]} 36. Rcc7 {[%clk 0:01:00]} 1-0


[Site "https://www.chess.com"]

[Event "Titled Tuesday Blitz August 17 2021"]
[White "Taichman, Ori"]
[Black "Alekseenko, Kirill"]
[WhiteFideId "2804069"]
[BlackFideId "4135539"]
[WhiteElo "2227"]
[BlackElo "2580"]
[Result "1-0"]
[Round "02"]
[TimeControl "180+1"]
[Date "2021.08.17"]
[WhiteClock "0:00:17"]
[BlackClock "0:00:03"]

1. e4 {[%clk 0:02:59]}  e5 {[%clk 0:02:59]} 2. d4 {[%clk 0:02:58]}  exd4 {[%clk 0:02:57]} 3. Qxd4 {[%clk 0:02:59]}  Nc6 {[%clk 0:02:57]} 4. Qe3 {[%clk 0:03:00]}  Nf6 {[%clk 0:02:55]} 5. Nc3 {[%clk 0:03:00]}  Bb4 {[%clk 0:02:56]} 6. Bd2 {[%clk 0:03:00]}  O-O {[%clk 0:02:56]} 7. O-O-O {[%clk 0:03:01]}  Re8 {[%clk 0:02:55]} 8. Qg3 {[%clk 0:03:01]}  Nxe4 {[%clk 0:02:37]} 9. Nxe4 {[%clk 0:03:01]}  Rxe4 {[%clk 0:02:36]} 10. c3 {[%clk 0:03:01]}  Bd6 {[%clk 0:02:28]} 11. f4 {[%clk 0:03:00]}  Qf6 {[%clk 0:02:04]} 12. Nh3 {[%clk 0:02:59]}  h6 {[%clk 0:01:56]} 13. Bd3 {[%clk 0:02:59]}  Re7 {[%clk 0:01:48]} 14. Nf2 {[%clk 0:02:15]}  g6 {[%clk 0:01:15]} 15. Ne4 {[%clk 0:01:28]}  Qg7 {[%clk 0:01:10]} 16. Nxd6 {[%clk 0:01:09]}  cxd6 {[%clk 0:01:11]} 17. f5 {[%clk 0:00:55]}  Ne5 {[%clk 0:01:10]} 18. fxg6 {[%clk 0:00:56]}  fxg6 {[%clk 0:00:55]} 19. Be4 {[%clk 0:00:48]}  Rb8 {[%clk 0:00:51]} 20. Be3 {[%clk 0:00:29]}  b6 {[%clk 0:00:49]} 21. Rxd6 {[%clk 0:00:27]}  Bb7 {[%clk 0:00:40]} 22. Rxg6 {[%clk 0:00:27]}  Nxg6 {[%clk 0:00:24]} 23. Qxb8+ {[%clk 0:00:28]}  Nf8 {[%clk 0:00:15]} 24. Qxb7 {[%clk 0:00:28]}  Qe5 {[%clk 0:00:16]} 25. Qd5+ {[%clk 0:00:28]}  Re6 {[%clk 0:00:16]} 26. Bd4 {[%clk 0:00:27]}  Qxe4 {[%clk 0:00:15]} 27. Qxe4 {[%clk 0:00:25]}  Rxe4 {[%clk 0:00:16]} 28. Rf1 {[%clk 0:00:26]}  Ne6 {[%clk 0:00:16]} 29. Rd1 {[%clk 0:00:21]}  Kf7 {[%clk 0:00:15]} 30. Kc2 {[%clk 0:00:20]}  Ke7 {[%clk 0:00:13]} 31. Rd2 {[%clk 0:00:21]}  h5 {[%clk 0:00:13]} 32. Kd3 {[%clk 0:00:21]}  Rg4 {[%clk 0:00:14]} 33. g3 {[%clk 0:00:21]}  h4 {[%clk 0:00:14]} 34. Bf2 {[%clk 0:00:19]}  h3 {[%clk 0:00:12]} 35. Re2 {[%clk 0:00:19]}  d5 {[%clk 0:00:11]} 36. Re5 {[%clk 0:00:19]}  Kd6 {[%clk 0:00:11]} 37. Rh5 {[%clk 0:00:19]}  Ng5 {[%clk 0:00:10]} 38. Be3 {[%clk 0:00:20]}  Nf3 {[%clk 0:00:06]} 39. Rh6+ {[%clk 0:00:19]}  Kd7 {[%clk 0:00:06]} 40. Rxh3 {[%clk 0:00:19]}  Ne5+ {[%clk 0:00:06]} 41. Ke2 {[%clk 0:00:19]}  Re4 {[%clk 0:00:07]} 42. Rh7+ {[%clk 0:00:20]}  Kc6 {[%clk 0:00:07]} 43. Rh6+ {[%clk 0:00:20]}  Kb5 {[%clk 0:00:07]} 44. Re6 {[%clk 0:00:20]}  a5 {[%clk 0:00:02]} 45. h4 {[%clk 0:00:20]}  a4 {[%clk 0:00:02]} 46. h5 {[%clk 0:00:21]}  a3 {[%clk 0:00:03]} 47. bxa3 {[%clk 0:00:21]}  Kc4 {[%clk 0:00:04]} 48. h6 {[%clk 0:00:19]}  Kxc3 {[%clk 0:00:04]} 49. h7 {[%clk 0:00:19]}  d4 {[%clk 0:00:05]} 50. h8=Q {[%clk 0:00:18]}  Rxe3+ {[%clk 0:00:05]} 51. Kf1 {[%clk 0:00:19]}  Nc4 {[%clk 0:00:03]} 52. Rxe3+ {[%clk 0:00:18]}  Nxe3+ {[%clk 0:00:04]} 53. Ke2 {[%clk 0:00:19]}  Nc4 {[%clk 0:00:04]} 54. a4 {[%clk 0:00:19]}  Nb2 {[%clk 0:00:03]} 55. Qe5 {[%clk 0:00:19]}  Nc4 {[%clk 0:00:03]} 56. Qd5 {[%clk 0:00:17]}  Nb2 {[%clk 0:00:03]} 57. Qc6+ {[%clk 0:00:16]}  Nc4 {[%clk 0:00:03]} 58. Qd5 {[%clk 0:00:16]}  Nb2 {[%clk 0:00:03]} 59. Qb3# {[%clk 0:00:17]} 1-0


[Site "https://www.chess.com"]

[Event "Titled Tuesday Blitz August 17 2021"]
[White "Tarasova, Viktoriya"]
[Black "Vlassov, Nikolai"]
[WhiteFideId "4175840"]
[BlackFideId "4103360"]
[WhiteElo "2182"]
[BlackElo "2407"]
[Result "0-1"]
[Round "02"]
[TimeControl "180+1"]
[Date "2021.08.18"]
[WhiteClock "0:00:15"]
[BlackClock "0:00:19"]

1. d4 {[%clk 0:03:00]}  Nf6 {[%clk 0:02:59]} 2. c4 {[%clk 0:03:01]}  Nc6 {[%clk 0:02:59]} 3. d5 {[%clk 0:03:00]}  Ne5 {[%clk 0:02:58]} 4. Qd4 {[%clk 0:03:00]}  Ng6 {[%clk 0:02:57]} 5. f4 {[%clk 0:02:57]}  e6 {[%clk 0:02:55]} 6. e4 {[%clk 0:02:56]}  exd5 {[%clk 0:02:54]} 7. cxd5 {[%clk 0:02:55]}  b6 {[%clk 0:02:48]} 8. e5 {[%clk 0:02:21]}  Bc5 {[%clk 0:02:47]} 9. Qd3 {[%clk 0:02:20]}  Ng4 {[%clk 0:02:43]} 10. Nh3 {[%clk 0:02:15]}  O-O {[%clk 0:02:40]} 11. Be2 {[%clk 0:02:12]}  f5 {[%clk 0:02:11]} 12. Nc3 {[%clk 0:01:58]}  a5 {[%clk 0:02:07]} 13. Qg3 {[%clk 0:01:55]}  a4 {[%clk 0:01:44]} 14. Bd2 {[%clk 0:01:41]}  c6 {[%clk 0:01:31]} 15. d6 {[%clk 0:01:36]}  b5 {[%clk 0:01:28]} 16. Bxg4 {[%clk 0:01:28]}  fxg4 {[%clk 0:01:28]} 17. Qxg4 {[%clk 0:01:27]}  Bd4 {[%clk 0:01:14]} 18. Ng5 {[%clk 0:01:13]}  Qe8 {[%clk 0:00:59]} 19. Nf3 {[%clk 0:01:02]}  Bxe5 {[%clk 0:00:32]} 20. fxe5 {[%clk 0:00:56]}  Nxe5 {[%clk 0:00:32]} 21. Nxe5 {[%clk 0:00:55]}  Qxe5+ {[%clk 0:00:32]} 22. Qe2 {[%clk 0:00:48]}  Qxd6 {[%clk 0:00:31]} 23. O-O-O {[%clk 0:00:48]}  a3 {[%clk 0:00:31]} 24. b3 {[%clk 0:00:40]}  b4 {[%clk 0:00:25]} 25. Ne4 {[%clk 0:00:31]}  Qe5 {[%clk 0:00:24]} 26. Bxb4 {[%clk 0:00:15]}  Qa1+ {[%clk 0:00:19]} 27. Kc2 {[%clk 0:00:15]}  Qxa2+ {[%clk 0:00:19]} 28. Kd3 {[%clk 0:00:15]}  Qxb3+ {[%clk 0:00:20]} 29. Bc3 {[%clk 0:00:15]}  Ba6+ {[%clk 0:00:19]} 0-1


[Site "https://www.chess.com"]

[Event "Titled Tuesday Blitz August 17 2021"]
[White "Tica, Sven"]
[Black "Rodchenkov, Vitaly"]
[WhiteFideId "14526948"]
[BlackFideId "4152964"]
[WhiteElo "2391"]
[BlackElo "2337"]
[Result "1/2-1/2"]
[Round "02"]
[TimeControl "180+1"]
[Date "2021.08.17"]
[WhiteClock "0:00:19"]
[BlackClock "0:00:31"]

1. d4 {[%clk 0:03:00]}  Nf6 {[%clk 0:02:58]} 2. Nc3 {[%clk 0:03:01]}  c5 {[%clk 0:02:57]} 3. d5 {[%clk 0:02:56]}  d6 {[%clk 0:02:57]} 4. e4 {[%clk 0:02:57]}  g6 {[%clk 0:02:56]} 5. f4 {[%clk 0:02:56]}  Bg7 {[%clk 0:02:56]} 6. h3 {[%clk 0:02:56]}  O-O {[%clk 0:02:55]} 7. Nf3 {[%clk 0:02:57]}  Na6 {[%clk 0:02:55]} 8. Be2 {[%clk 0:02:53]}  Nc7 {[%clk 0:02:55]} 9. O-O {[%clk 0:02:52]}  b5 {[%clk 0:02:52]} 10. Nxb5 {[%clk 0:02:51]}  Nxb5 {[%clk 0:02:51]} 11. Bxb5 {[%clk 0:02:51]}  Nxe4 {[%clk 0:02:52]} 12. Re1 {[%clk 0:02:51]}  Nf6 {[%clk 0:02:49]} 13. c4 {[%clk 0:02:48]}  Rb8 {[%clk 0:02:49]} 14. Qe2 {[%clk 0:02:45]}  e6 {[%clk 0:02:49]} 15. dxe6 {[%clk 0:02:45]}  Bxe6 {[%clk 0:02:49]} 16. Rd1 {[%clk 0:02:38]}  Qb6 {[%clk 0:02:35]} 17. Ng5 {[%clk 0:02:28]}  Bc8 {[%clk 0:02:12]} 18. Qe7 {[%clk 0:02:20]}  d5 {[%clk 0:02:07]} 19. Be3 {[%clk 0:01:57]}  d4 {[%clk 0:02:01]} 20. Bf2 {[%clk 0:01:57]}  Bb7 {[%clk 0:01:49]} 21. b4 {[%clk 0:01:53]}  a6 {[%clk 0:01:10]} 22. bxc5 {[%clk 0:01:52]}  Qa5 {[%clk 0:01:11]} 23. Bxd4 {[%clk 0:01:31]}  axb5 {[%clk 0:01:09]} 24. Bxf6 {[%clk 0:01:31]}  Bxf6 {[%clk 0:01:03]} 25. Qxf6 {[%clk 0:01:32]}  bxc4 {[%clk 0:01:02]} 26. Qd4 {[%clk 0:01:09]}  Rbc8 {[%clk 0:00:55]} 27. Qxc4 {[%clk 0:01:07]}  Rxc5 {[%clk 0:00:49]} 28. Qb3 {[%clk 0:01:06]}  Rb5 {[%clk 0:00:48]} 29. Qc2 {[%clk 0:01:00]}  Qb6+ {[%clk 0:00:47]} 30. Kh1 {[%clk 0:00:26]}  Rb2 {[%clk 0:00:45]} 31. Rab1 {[%clk 0:00:27]}  Rxc2 {[%clk 0:00:43]} 32. Rxb6 {[%clk 0:00:27]}  Bxg2+ {[%clk 0:00:43]} 33. Kg1 {[%clk 0:00:27]}  h6 {[%clk 0:00:41]} 34. Nxf7 {[%clk 0:00:15]}  Rxf7 {[%clk 0:00:41]} 35. Rxg6+ {[%clk 0:00:15]}  Rg7 {[%clk 0:00:41]} 36. Rd8+ {[%clk 0:00:14]}  Kh7 {[%clk 0:00:41]} 37. Rxg7+ {[%clk 0:00:14]}  Kxg7 {[%clk 0:00:41]} 38. Rd7+ {[%clk 0:00:15]}  Kg6 {[%clk 0:00:40]} 39. Rd6+ {[%clk 0:00:15]}  Kf5 {[%clk 0:00:38]} 40. Rxh6 {[%clk 0:00:15]}  Kxf4 {[%clk 0:00:36]} 41. Rf6+ {[%clk 0:00:14]}  Ke5 {[%clk 0:00:32]} 42. Rf2 {[%clk 0:00:14]}  Rxf2 {[%clk 0:00:30]} 43. Kxf2 {[%clk 0:00:15]}  Bxh3 {[%clk 0:00:30]} 44. a4 {[%clk 0:00:16]}  Kd4 {[%clk 0:00:30]} 45. a5 {[%clk 0:00:17]}  Kc5 {[%clk 0:00:30]} 46. a6 {[%clk 0:00:18]}  Kb6 {[%clk 0:00:30]} 47. a7 {[%clk 0:00:19]}  Kxa7 {[%clk 0:00:31]} 1/2-1/2


[Site "https://www.chess.com"]